Workbook

Sheet 一般用
A1: 附件1：
A2: 阎良区2022年一般公共预算收支预算调整表（草案）
H3: 单位：万元
A4: 收 入 | E4: 支 出
A5: 项 目 | B5: 年度预算 | C5: 增减 （+，-） | D5: 调整预算 | E5: 项 目 | F5: 年度预算 | G5: 增减 （+，-） | H5: 调整预算
A6: 一、区级收入 | B6: 79,810 | C6: 216,609 | D6: =B6+C6 -> 296,419 | E6: 一、区级支出 | F6: 177,263 | G6: 177,476 | H6: =F6+G6 -> 354,739
A7: 二、上级补助收入 | B7: 48,247 | C7: 53,777 | D7: =B7+C7 -> 102,024 | E7: 二、上解上级支出 | F7: 6,601 | G7: 40,024 | H7: 46,625
A8: 三、债务收入 | C8: 8,899 | D8: 8,899 | E8: 三、调出资金 | G8: 19,988 | H8: 19,988
A9: 地方政府一般债券收入 | C9: 8,899 | D9: 8,899 | E9: 四、债务还本支出 | G9: 4,657 | H9: 4,657
A10: 四、上年结余 | B10: 18,408 | C10: 10 | D10: 18,418 | E10: 地方政府一般性债务还本支出 | G10: 4,657 | H10: 4,657
A11: 五、调入资金 | B11: 37,399 | C11: -37,399 | D11: 0 | H11: 0
A12: 六、动用预算稳定调节基金 | C12: 249 | D12: 249
A14: 总计 | B14: =SUM(B6:B8,B10:B12) -> 183,864 | C14: =SUM(C6:C8,C10:C12) -> 242,145 | D14: =SUM(D6:D8,D10:D12) -> 426,009 | E14: 总计 | F14: =SUM(F6:F9) -> 183,864 | G14: =SUM(G6:G9) -> 242,145 | H14: =SUM(H6:H9) -> 426,009

Sheet 基金用
A1: 附件2：
A2: 阎良区2022年政府性基金预算收支预算调整表（草案）
H3: 单位：万元
A4: 收 入 | E4: 支 出
A5: 项 目 | B5: 年度预算 | C5: 增减 （+，-） | D5: 调整预算 | E5: 项 目 | F5: 年度预算 | G5: 增减 （+，-） | H5: 调整预算
A6: 一、区级收入 | B6: 45,578 | C6: 13,727 | D6: =B6+C6 -> 59,305 | E6: 一、区级支出 | F6: 32,181 | G6: 118,030 | H6: =SUM(F6:G6) -> 150,211
A7: 二、上级补助收入 | B7: 673 | C7: 13,365 | D7: 14,038 | E7: 二、上解上级支出 | F7: 1,800 | G7: -1,800 | H7: 0
A8: 三、债务收入 | C8: 36,900 | D8: 36,900 | E8: 三、调出资金 | F8: 36,399 | G8: -36,399 | H8: 0
A9: 专项债券收入 | C9: 36,900 | D9: 36,900 | E9: 四、债务还本支出 | H9: 0
A10: 四、上年结余 | B10: 24,129 | C10: 351 | D10: 24,480 | E10: 地方政府一般性债务还本支出 | H10: 0
A11: 五、调入资金 | C11: 19,988 | D11: 19,988 | E11: 五、年终结余 | G11: 4,500 | H11: 4,500
D12: 0
A14: 总计 | B14: =SUM(B6:B8,B10:B12) -> 70,380 | C14: =SUM(C6:C8,C10:C12) -> 84,331 | D14: =SUM(D6:D8,D10:D12) -> 154,711 | E14: 总计 | F14: =SUM(F6:F9) -> 70,380 | G14: =SUM(G6:G9,G11) -> 84,331 | H14: =SUM(H6:H9,H11) -> 154,711

Sheet 国有资本
A1: 附件3：
A2: 阎良区2022年国有资本经营预算收支预算调整表（草案）
H3: 单位：万元
A4: 收 入 | E4: 支 出
A5: 项 目 | B5: 年度预算 | C5: 增减 （+，-） | D5: 调整预算 | E5: 项 目 | F5: 年度预算 | G5: 增减 （+，-） | H5: 调整预算
A6: 一、区级收入 | B6: 1,000 | D6: =B6+C6 -> 1,000 | E6: 一、区级支出 | F6: 172 | H6: =SUM(F6:G6) -> 172
A7: 二、上级补助收入 | C7: 1,257 | D7: =B7+C7 -> 1,257 | E7: 二、上解上级支出 | H7: =SUM(F7:G7) -> 0
A8: 三、上年结余 | B8: 172 | D8: =B8+C8 -> 172 | E8: 三、调出资金 | F8: 1,000 | H8: =SUM(F8:G8) -> 1,000
D9: =B9+C9 -> 0 | E9: 四、年终结余 | G9: 1,257 | H9: =SUM(F9:G9) -> 1,257
A11: 总计 | B11: =SUM(B6:B7,B8:B9) -> 1,172 | C11: =SUM(C6:C7,C8:C9) -> 1,257 | D11: =SUM(D6:D7,D8:D9) -> 2,429 | E11: 总计 | F11: =SUM(F6:F9) -> 1,172 | G11: =SUM(G6:G9) -> 1,257 | H11: =SUM(H6:H9) -> 2,429

Sheet 一般债券
A1: 附件4：
A2: 阎良区2022年新增地方政府一般债券安排表（草案）
F3: 单位：万元
A4: 序号 | B4: 项目单位 | C4: 项目名称 | D4: 新增债券额度 | E4: 置换额度 | F4: 拨付额度
A5: 1 | B5: 阎良经济开发区管理委员会 | C5: 西安市阎良区青松路（外环西路-航空三路）提升改造项目 | D5: 900 | F5: =D5-E5 -> 900
A6: 2 | B6: 阎良经济开发区管理委员会 | C6: 西安市阎良区关山园区基础设施建设项目（园区雨、污水排放配套管网建设） | D6: 1,000 | F6: =D6-E6 -> 1,000
A7: 3 | B7: 阎良区住房和城乡建设局 | C7: 阎良区润天大道与咸铜候西铁路立交桥建设项目 | D7: 2,307 | F7: =D7-E7 -> 2,307
A8: 8 | B8: 阎良区水务局 | C8: 西安市阎良区小型水库安全运行项目 | D8: 35 | E8: 35
A9: 合计 | D9: =SUM(D5:D8) -> 4,242 | E9: =SUM(E5:E8) -> 35 | F9: =SUM(F5:F8) -> 4,207

Sheet 专项债券
A1: 附件5：
A2: 阎良区2022年新增地方政府专项债券安排表（草案）
E3: 单位：万元
A4: 序号 | B4: 债券类型 | C4: 项目单位 | D4: 项目名称 | E4: 新增债券额度
A5: 1 | B5: 市政及产业园区基础设施-产业园区基础设施 | C5: 阎良经济开发区管理委员会 | D5: 新型工业园区基础设施建设 | E5: 5,300
A6: 2 | B6: 保障性安居工程-棚户区改造 | C6: 阎良区城棚改事务中心 | D6: 新跃村（安芦组）棚户区改造项目 | E6: 27,000
A7: 3 | B7: 农林水利-水利 | C7: 阎良区水务局 | D7: 西片区农村安全饮水工程 | E7: 4,600
A8: 合计 | E8: =SUM(E5:E7) -> 36,900
